fUST/lending_fUST_20260609
["ID","MTS","AMOUNT","RATE_DAILY","PERIOD"]
[424468790,1780937441000,-1039.1365421,0.000121,2]
[424468798,1780937441000,-151.0,0.00013527,2]
[424468800,1780937441000,-168.3888056,0.00013675,2]
[424468796,1780937441000,-1000.0,0.00013527,2]
[424468799,1780937441000,-151.0,0.00013527,2]
[424468788,1780937441000,-9120.4310153,0.000121,2]
[424468802,1780937441000,-151.0,0.00013675,2]
[424468804,1780937441000,-745.53,0.00013698,2]
[424468811,1780937441000,-745.53,0.00013698,2]
[424468810,1780937441000,-745.53,0.00013698,2]
[424468812,1780937441000,-745.53,0.00013698,2]
[424468809,1780937441000,-745.53,0.00013698,2]
[424468797,1780937441000,-151.0,0.00013527,2]
[424468786,1780937441000,-431.839745,0.00011721,2]
[424468774,1780937441000,-250.0,0.000117,2]
[424468785,1780937441000,-151.0,0.000117,2]
[424468763,1780937441000,-7499.64824098,0.00011503,2]
[424468767,1780937441000,-151.0,0.000116,2]
[424468766,1780937441000,-151.0,0.000116,2]
[424468764,1780937441000,-151.0,0.000116,2]
[424468768,1780937441000,-151.0,0.000116,2]
[424468765,1780937441000,-151.0,0.000116,2]
[424468770,1780937441000,-5000.0,0.000116,2]
[424468772,1780937441000,-250.0,0.000117,2]
[424468771,1780937441000,-152.0,0.00011603,7]
[424468769,1780937441000,-151.0,0.000116,2]
[424468773,1780937441000,-250.0,0.000117,2]
[424468775,1780937441000,-250.0,0.000117,2]
[424468776,1780937441000,-250.0,0.000117,2]
[424468780,1780937441000,-263.7,0.000117,2]
[424468778,1780937441000,-250.0,0.000117,2]
[424468779,1780937441000,-250.0,0.000117,2]
[424468782,1780937441000,-151.0,0.000117,2]
[424468777,1780937441000,-250.0,0.000117,2]
[424468808,1780937441000,-745.53,0.00013698,2]
[424468781,1780937441000,-151.0,0.000117,2]
[424468783,1780937441000,-151.0,0.000117,2]
[424468784,1780937441000,-151.0,0.000117,2]
[424468814,1780937441000,-745.53,0.00013698,2]
[424468806,1780937441000,-745.53,0.00013698,2]
[424468815,1780937441000,-745.53,0.00013698,2]
[424468861,1780937441000,-500.0,0.00013698,2]
[424468857,1780937441000,-500.0,0.00013698,2]
[424468865,1780937441000,-500.0,0.00013698,2]
[424468853,1780937441000,-500.0,0.00013698,2]
[424468867,1780937441000,-500.0,0.00013698,2]
[424468863,1780937441000,-500.0,0.00013698,2]
[424468855,1780937441000,-500.0,0.00013698,2]
[424468859,1780937441000,-502.18078535,0.00013698,2]
[424468869,1780937441000,-500.0,0.00013698,2]
[424468851,1780937441000,-500.0,0.00013698,2]
[424468872,1780937441000,-500.0,0.00013698,2]
[424468813,1780937441000,-745.53,0.00013698,2]
[424468878,1780937441000,-500.0,0.00013698,2]
[424468889,1780937441000,-500.0,0.00013698,2]
[424468891,1780937441000,-444.58,0.00013698,2]
[424468893,1780937441000,-500.0,0.00013698,2]
[424468887,1780937441000,-500.0,0.00013698,2]
[424468884,1780937441000,-500.0,0.00013698,2]
[424468880,1780937441000,-555.8376465,0.00013698,2]
[424468882,1780937441000,-500.0,0.00013698,2]
[424468874,1780937441000,-500.0,0.00013698,2]
[424468847,1780937441000,-500.0,0.00013698,2]
[424468876,1780937441000,-217.99,0.00013698,2]
[424468839,1780937441000,-500.0,0.00013698,2]
[424468845,1780937441000,-199.36,0.00013698,2]
[424468817,1780937441000,-500.0,0.00013698,2]
[424468816,1780937441000,-500.0,0.00013698,2]
[424468818,1780937441000,-502.77246511,0.00013698,2]
[424468820,1780937441000,-500.0,0.00013698,2]
[424468821,1780937441000,-500.0,0.00013698,2]
[424468822,1780937441000,-500.0,0.00013698,2]
[424468825,1780937441000,-500.0,0.00013698,2]
[424468823,1780937441000,-500.0,0.00013698,2]
[424468824,1780937441000,-500.0,0.00013698,2]
[424468819,1780937441000,-500.0,0.00013698,2]
[424468827,1780937441000,-502.9351211,0.00013698,2]
[424468828,1780937441000,-500.0,0.00013698,2]
[424468830,1780937441000,-500.0,0.00013698,2]
[424468829,1780937441000,-500.0,0.00013698,2]
[424468841,1780937441000,-500.0,0.00013698,2]
[424468833,1780937441000,-500.0,0.00013698,2]
[424468832,1780937441000,-500.0,0.00013698,2]
[424468837,1780937441000,-500.0,0.00013698,2]
[424468835,1780937441000,-500.0,0.00013698,2]
[424468826,1780937441000,-500.0,0.00013698,2]
[424468843,1780937441000,-500.0,0.00013698,2]
[424468982,1780937442000,-662.13153522,0.00014453,2]
[424468983,1780937442000,-662.13153522,0.0001451,2]
[424468971,1780937442000,-745.53,0.00014042,2]
[424468967,1780937442000,-219.189,0.00013978,2]
[424468975,1780937442000,-156.0,0.00014297,2]
[424468969,1780937442000,-150.293,0.00013978,2]
[424468973,1780937442000,-151.0,0.00014223,2]
[424468960,1780937442000,-3625.0,0.00013978,2]
[424468962,1780937442000,-744.0,0.00013978,2]
[424468958,1780937442000,-446.986,0.00013978,2]
[424468986,1780937442000,-162.75,0.00014533,2]
[424468965,1780937442000,-186.0,0.00013978,2]
[424468992,1780937442000,-2814.154456,0.00014589,2]
[424469021,1780937442000,-2951.0,0.00014652,2]
[424468990,1780937442000,-2814.154456,0.00014589,2]
[424468998,1780937442000,-795.0,0.000146,2]
[424468994,1780937442000,-2814.154456,0.00014589,2]
[424468996,1780937442000,-2814.154456,0.00014589,2]
[424469000,1780937442000,-228.58886623,0.00014652,2]
[424469004,1780937442000,-2951.0,0.00014652,2]
[424469002,1780937442000,-2951.0,0.00014652,2]
[424469017,1780937442000,-2951.0,0.00014652,2]
[424469019,1780937442000,-2951.0,0.00014652,2]
[424469011,1780937442000,-2951.0,0.00014652,2]
[424469013,1780937442000,-2951.0,0.00014652,2]
[424468956,1780937442000,-2208.0,0.00013978,2]
[424468988,1780937442000,-166.0,0.00014573,2]
[424468954,1780937442000,-1763.0,0.00013978,2]
[424469007,1780937442000,-2951.0,0.00014652,2]
[424468950,1780937442000,-500.0,0.00013978,2]
[424468895,1780937442000,-500.0,0.00013698,2]
[424468897,1780937442000,-500.0,0.00013698,2]
[424468899,1780937442000,-500.0,0.00013698,2]
[424468903,1780937442000,-2814.154456,0.00013699,2]
[424468901,1780937442000,-1000.0,0.00013699,2]
[424468907,1780937442000,-2814.154456,0.00013699,2]
[424468905,1780937442000,-2814.154456,0.00013699,2]
[424468909,1780937442000,-2814.154456,0.00013699,2]
[424468917,1780937442000,-2814.154456,0.00013699,2]
[424468911,1780937442000,-384.174884,0.00013699,2]
[424468919,1780937442000,-2814.154456,0.00013699,2]
[424468913,1780937442000,-199.388035,0.00013699,2]
[424468915,1780937442000,-2814.154456,0.00013699,2]
[424468920,1780937442000,-2814.154456,0.00013699,2]
[424468922,1780937442000,-161.97,0.00013702,2]
[424468924,1780937442000,-161.96,0.00013704,2]
[424468926,1780937442000,-502.93837888,0.00013787,2]
[424468929,1780937442000,-500.0,0.00013787,2]
[424468931,1780937442000,-745.53,0.00013838,2]
[424468933,1780937442000,-745.53,0.00013838,2]
[424468942,1780937442000,-745.53,0.00013838,2]
[424468937,1780937442000,-745.53,0.00013838,2]
[424468944,1780937442000,-745.53,0.00013838,2]
[424468939,1780937442000,-745.53,0.00013838,2]
[424468946,1780937442000,-745.53,0.00013938,2]
[424468935,1780937442000,-745.53,0.00013838,2]
[424468948,1780937442000,-274.11758779,0.00013963,2]
[424468952,1780937442000,-1416.0,0.00013978,2]
[424469009,1780937442000,-2951.0,0.00014652,2]
[424469091,1780937442000,-151.0,0.0001488,2]
[424469023,1780937442000,-2951.0,0.00014652,2]
[424469083,1780937442000,-1000.0,0.0001488,2]
[424469097,1780937442000,-745.53,0.00014925,2]
[424469140,1780937442000,-2814.154456,0.000153,2]
[424469095,1780937442000,-745.53,0.00014925,2]
[424469093,1780937442000,-745.53,0.00014925,2]
[424469089,1780937442000,-151.0,0.0001488,2]
[424469099,1780937442000,-745.53,0.00014925,2]
[424469100,1780937442000,-745.63,0.00014925,2]
[424469105,1780937442000,-1283.0,0.00015,2]
[424469110,1780937442000,-174.61919141,0.00015044,2]
[424469106,1780937442000,-166.0,0.00015014,2]
[424469102,1780937442000,-1241.234138,0.00015,2]
[424469118,1780937442000,-295.444632,0.00015098,2]
[424469116,1780937442000,-343.72561354,0.00015092,2]
[424469114,1780937442000,-504.20383797,0.00015089,2]
[424469108,1780937442000,-166.32,0.00015029,2]
[424469122,1780937442000,-768.57031478,0.00015155,2]
[424469112,1780937442000,-192.273618,0.00015068,2]
[424469120,1780937442000,-160.0,0.00015155,2]
[424469124,1780937442000,-500.0,0.00015199,2]
[424469126,1780937442000,-9234.35368089,0.000152,2]
[424469128,1780937442000,-221.42836186,0.000152,2]
[424469130,1780937442000,-168.77,0.00015218,2]
[424469132,1780937442000,-504.20383797,0.0001528,2]
[424469134,1780937442000,-9234.35368089,0.000153,2]
[424469136,1780937442000,-221.42836186,0.000153,2]
[424469138,1780937442000,-2814.154456,0.000153,2]
[424469085,1780937442000,-244.0,0.0001488,2]
[424469081,1780937442000,-374.71342182,0.00014878,2]
[424469015,1780937442000,-2951.0,0.00014652,2]
[424469079,1780937442000,-240.05664661,0.00014878,2]
[424469087,1780937442000,-151.0,0.0001488,2]
[424469027,1780937442000,-2951.0,0.00014652,2]
[424469025,1780937442000,-2951.0,0.00014652,2]
[424469029,1780937442000,-2951.0,0.00014652,2]
[424469031,1780937442000,-2951.0,0.00014652,2]
[424469035,1780937442000,-2951.0,0.00014652,2]
[424469033,1780937442000,-2951.0,0.00014652,2]
[424469040,1780937442000,-2951.0,0.00014652,2]
[424469048,1780937442000,-2951.0,0.00014652,2]
[424469046,1780937442000,-2951.0,0.00014652,2]
[424469042,1780937442000,-2951.0,0.00014652,2]
[424469044,1780937442000,-2951.0,0.00014652,2]
[424469049,1780937442000,-2966.17056556,0.00014652,2]
[424469037,1780937442000,-2951.0,0.00014652,2]
[424469053,1780937442000,-164.11,0.00014696,2]
[424469051,1780937442000,-384.174884,0.00014658,2]
[424469075,1780937442000,-189.08456448,0.00014878,2]
[424469073,1780937442000,-165.44899392,0.00014878,2]
[424469065,1780937442000,-504.20383797,0.00014715,2]
[424469071,1780937442000,-358.63108544,0.00014878,2]
[424469067,1780937442000,-151.0,0.00014771,2]
[424469063,1780937442000,-504.20383797,0.00014704,2]
[424469077,1780937442000,-210.04956579,0.00014878,2]
[424469060,1780937442000,-355.0,0.00014702,2]
[424469061,1780937442000,-156.0,0.00014702,2]
[424469055,1780937442000,-265.0,0.00014702,2]
[424469058,1780937442000,-204.0,0.00014702,2]
[424469069,1780937442000,-662.13153522,0.00014779,2]
[424469208,1780937443000,-500.0,0.00015799,2]
[424469210,1780937443000,-9234.35368089,0.000158,2]
[424469207,1780937443000,-500.0,0.0001575,2]
[424469205,1780937443000,-355.0,0.00015702,2]
[424469206,1780937443000,-156.0,0.00015702,2]
[424469199,1780937443000,-9234.35368089,0.000156,2]
[424469204,1780937443000,-204.0,0.00015702,2]
[424469201,1780937443000,-151.0,0.000156,2]
[424469202,1780937443000,-151.0,0.000156,2]
[424469203,1780937443000,-265.0,0.00015702,2]
[424469212,1780937443000,-151.0,0.00015867,2]
[424469209,1780937443000,-11307.016836,0.000158,2]
[424469224,1780937443000,-1000.0,0.00016368,2]
[424469230,1780937443000,-1314.1315,0.00016438,2]
[424469211,1780937443000,-221.42836186,0.000158,2]
[424469225,1780937443000,-492.0,0.00016368,2]
[424469215,1780937443000,-425.01482981,0.00016018,2]
[424469214,1780937443000,-9234.35368089,0.000159,2]
[424469220,1780937443000,-4873.54,0.00016123,2]
[424469213,1780937443000,-414.07180647,0.00015899,2]
[424469219,1780937443000,-9234.35368089,0.000161,2]
[424469217,1780937443000,-443.93196105,0.00016021,2]
[424469221,1780937443000,-151.0,0.000162,2]
[424469226,1780937443000,-9234.35368089,0.000164,2]
[424469227,1780937443000,-166.84145212,0.00016413,2]
[424469228,1780937443000,-151.0,0.00016415,2]
[424469200,1780937443000,-221.42836186,0.000156,2]
[424469222,1780937443000,-9234.35368089,0.000162,2]
[424469197,1780937443000,-221.42836186,0.000155,2]
[424469174,1780937443000,-151.0,0.00015426,2]
[424469191,1780937443000,-2814.154456,0.00015426,2]
[424469231,1780937443000,-500.0,0.00016438,2]
[424469149,1780937443000,-327.75992685,0.00015393,2]
[424469143,1780937443000,-2814.154456,0.000153,2]
[424469145,1780937443000,-2814.154456,0.000153,2]
[424469147,1780937443000,-151.0,0.00015319,2]
[424469151,1780937443000,-300.0,0.00015394,2]
[424469153,1780937443000,-151.0,0.000154,2]
[424469155,1780937443000,-151.0,0.000154,2]
[424469157,1780937443000,-151.0,0.000154,2]
[424469168,1780937443000,-500.0,0.00015425,2]
[424469159,1780937443000,-152.01166185,0.000154,2]
[424469161,1780937443000,-300.0,0.00015409,2]
[424469163,1780937443000,-327.75992685,0.00015409,2]
[424469172,1780937443000,-500.0,0.00015425,2]
[424469170,1780937443000,-500.0,0.00015425,2]
[424469165,1780937443000,-500.0,0.0001542,2]
[424469176,1780937443000,-151.0,0.00015426,2]
[424469180,1780937443000,-151.0,0.00015426,2]
[424469178,1780937443000,-151.0,0.00015426,2]
[424469184,1780937443000,-151.0,0.00015426,2]
[424469187,1780937443000,-2814.154456,0.00015426,2]
[424469195,1780937443000,-151.0,0.000155,2]
[424469189,1780937443000,-2814.154456,0.00015426,2]
[424469192,1780937443000,-2814.154466,0.00015426,2]
[424469196,1780937443000,-9234.35368089,0.000155,2]
[424469194,1780937443000,-500.0,0.00015499,2]
[424469193,1780937443000,-162.0,0.00015476,2]
[424469198,1780937443000,-164.596674,0.00015582,2]
[424469243,1780937443000,-501.04836356,0.00016438,2]
[424469240,1780937443000,-500.0,0.00016438,2]
[424469233,1780937443000,-501.30038512,0.00016438,2]
[424469273,1780937443000,-301.63015491,0.00016438,2]
[424469272,1780937443000,-626.32,0.00016438,2]
[424469268,1780937443000,-602.94992951,0.00016438,2]
[424469269,1780937443000,-500.73281452,0.00016438,2]
[424469271,1780937443000,-500.0255424,0.00016438,2]
[424469275,1780937443000,-500.0,0.00016438,2]
[424469270,1780937443000,-500.74390208,0.00016438,2]
[424469277,1780937443000,-500.0,0.00016438,2]
[424469276,1780937443000,-500.87920697,0.00016438,2]
[424469279,1780937443000,-543.96,0.00016438,2]
[424469278,1780937443000,-500.0,0.00016438,2]
[424469281,1780937443000,-500.56,0.00016438,2]
[424469282,1780937443000,-500.76311091,0.00016438,2]
[424469284,1780937443000,-500.0,0.00016438,2]
[424469283,1780937443000,-500.0,0.00016438,2]
[424469285,1780937443000,-550.58,0.00016438,2]
[424469286,1780937443000,-500.0,0.00016438,2]
[424469287,1780937443000,-500.0,0.00016438,2]
[424469288,1780937443000,-500.0,0.00016438,2]
[424469289,1780937443000,-500.0,0.00016438,2]
[424469291,1780937443000,-500.0,0.00016438,2]
[424469292,1780937443000,-500.0,0.00016438,2]
[424469294,1780937443000,-500.71421986,0.00016438,2]
[424469290,1780937443000,-500.0,0.00016438,2]
[424469293,1780937443000,-500.0,0.00016438,2]
[424469295,1780937443000,-500.30168986,0.00016438,2]
[424469296,1780937443000,-501.01853056,0.00016438,2]
[424469274,1780937443000,-500.0,0.00016438,2]
[424469267,1780937443000,-500.0,0.00016438,2]
[424469280,1780937443000,-500.50502214,0.00016438,2]
[424469266,1780937443000,-500.0,0.00016438,2]
[424469265,1780937443000,-500.0,0.00016438,2]
[424469242,1780937443000,-500.0,0.00016438,2]
[424469235,1780937443000,-500.0,0.00016438,2]
[424469237,1780937443000,-500.0,0.00016438,2]
[424469241,1780937443000,-500.0,0.00016438,2]
[424469238,1780937443000,-500.0,0.00016438,2]
[424469245,1780937443000,-500.0,0.00016438,2]
[424469244,1780937443000,-501.03985406,0.00016438,2]
[424469250,1780937443000,-530.35,0.00016438,2]
[424469246,1780937443000,-564.0216364,0.00016438,2]
[424469249,1780937443000,-500.0,0.00016438,2]
[424469248,1780937443000,-501.3253092,0.00016438,2]
[424469251,1780937443000,-500.0,0.00016438,2]
[424469247,1780937443000,-500.0,0.00016438,2]
[424469253,1780937443000,-500.0,0.00016438,2]
[424469252,1780937443000,-500.0,0.00016438,2]
[424469262,1780937443000,-500.81059182,0.00016438,2]
[424469260,1780937443000,-557.39,0.00016438,2]
[424469261,1780937443000,-500.0,0.00016438,2]
[424469259,1780937443000,-500.0,0.00016438,2]
[424469263,1780937443000,-500.51484621,0.00016438,2]
[424469264,1780937443000,-500.0,0.00016438,2]
[424469257,1780937443000,-500.0,0.00016438,2]
[424469258,1780937443000,-500.0,0.00016438,2]
[424469255,1780937443000,-479.68976478,0.00016438,2]
[424469234,1780937443000,-152.30180357,0.00016438,2]
[424469254,1780937443000,-500.0,0.00016438,2]
[424469256,1780937443000,-500.0,0.00016438,2]
[424469330,1780937444000,-500.0,0.00016438,2]
[424469331,1780937444000,-500.5507713,0.00016438,2]
[424469328,1780937444000,-500.98534301,0.00016438,2]
[424469332,1780937444000,-722.56,0.00016438,2]
[424469351,1780937444000,-500.0,0.00016438,2]
[424469338,1780937444000,-500.0,0.00016438,2]
[424469336,1780937444000,-395.97559508,0.00016438,2]
[424469335,1780937444000,-500.0,0.00016438,2]
[424469337,1780937444000,-500.74750936,0.00016438,2]
[424469333,1780937444000,-500.0,0.00016438,2]
[424469339,1780937444000,-567.74,0.00016438,2]
[424469341,1780937444000,-2009.88,0.00016438,2]
[424469334,1780937444000,-730.06,0.00016438,2]
[424469355,1780937444000,-500.49297634,0.00016438,2]
[424469340,1780937444000,-421.97665946,0.00016438,2]
[424469344,1780937444000,-500.0,0.00016438,2]
[424469342,1780937444000,-521.35,0.00016438,2]
[424469349,1780937444000,-500.0,0.00016438,2]
[424469346,1780937444000,-500.0,0.00016438,2]
[424469347,1780937444000,-500.59646834,0.00016438,2]
[424469350,1780937444000,-530.06,0.00016438,2]
[424469345,1780937444000,-500.0,0.00016438,2]
[424469348,1780937444000,-500.90610752,0.00016438,2]
[424469352,1780937444000,-500.0,0.00016438,2]
[424469353,1780937444000,-500.0,0.00016438,2]
[424469329,1780937444000,-260.67158091,0.00016438,2]
[424469343,1780937444000,-500.0,0.00016438,2]
[424469327,1780937444000,-633.13,0.00016438,2]
[424469301,1780937444000,-500.0,0.00016438,2]
[424469325,1780937444000,-529.77,0.00016438,2]
[424469364,1780937444000,-159.48714718,0.00016438,2]
[424469302,1780937444000,-500.0,0.00016438,2]
[424469298,1780937444000,-500.36084482,0.00016438,2]
[424469297,1780937444000,-500.0,0.00016438,2]
[424469299,1780937444000,-500.0,0.00016438,2]
[424469300,1780937444000,-500.0,0.00016438,2]
[424469303,1780937444000,-500.0,0.00016438,2]
[424469305,1780937444000,-355.38161929,0.00016438,2]
[424469304,1780937444000,-500.0,0.00016438,2]
[424469307,1780937444000,-500.45187875,0.00016438,2]
[424469306,1780937444000,-500.0,0.00016438,2]
[424469308,1780937444000,-500.51998021,0.00016438,2]
[424469312,1780937444000,-500.0,0.00016438,2]
[424469314,1780937444000,-9671.73,0.00016438,2]
[424469313,1780937444000,-500.92950736,0.00016438,2]
[424469311,1780937444000,-500.69723441,0.00016438,2]
[424469310,1780937444000,-226.19928307,0.00016438,2]
[424469315,1780937444000,-500.6699477,0.00016438,2]
[424469317,1780937444000,-597.65314524,0.00016438,2]
[424469320,1780937444000,-500.74944935,0.00016438,2]
[424469318,1780937444000,-500.59229748,0.00016438,2]
[424469316,1780937444000,-500.0,0.00016438,2]
[424469319,1780937444000,-500.0,0.00016438,2]
[424469321,1780937444000,-500.88565328,0.00016438,2]
[424469323,1780937444000,-500.85074254,0.00016438,2]
[424469326,1780937444000,-500.75177389,0.00016438,2]
[424469324,1780937444000,-500.0,0.00016438,2]
[424469322,1780937444000,-500.0,0.00016438,2]
[424469360,1780937444000,-500.0,0.00016438,2]
[424469309,1780937444000,-500.50621534,0.00016438,2]
[424469357,1780937444000,-500.0,0.00016438,2]
[424469389,1780937444000,-500.0,0.00016438,2]
[424469391,1780937444000,-170.89347022,0.00016438,2]
[424469397,1780937444000,-741.25,0.00016438,2]
[424469398,1780937444000,-500.0,0.00016438,2]
[424469388,1780937444000,-500.0,0.00016438,2]
[424469390,1780937444000,-500.0,0.00016438,2]
[424469394,1780937444000,-500.47646761,0.00016438,2]
[424469393,1780937444000,-575.0113203,0.00016438,2]
[424469399,1780937444000,-500.0,0.00016438,2]
[424469400,1780937444000,-500.0,0.00016438,2]
[424469409,1780937444000,-152.113477,0.00016438,2]
[424469408,1780937444000,-212.032475,0.00016438,2]
[424469404,1780937444000,-500.0,0.00016438,2]
[424469410,1780937444000,-151.0,0.00016438,2]
[424469402,1780937444000,-178.83097486,0.00016438,2]
[424469403,1780937444000,-500.0,0.00016438,2]
[424469411,1780937444000,-151.0,0.00016438,2]
[424469401,1780937444000,-500.86451684,0.00016438,2]
[424469406,1780937444000,-151.0,0.00016438,2]
[424469407,1780937444000,-151.0,0.00016438,2]
[424469405,1780937444000,-171.97,0.00016438,2]
[424469413,1780937444000,-151.0,0.00016438,2]
[424469412,1780937444000,-151.0,0.00016438,2]
[424469414,1780937444000,-151.0,0.00016438,2]
[424469416,1780937444000,-152.942289,0.00016438,2]
[424469415,1780937444000,-228.76512,0.00016438,2]
[424469356,1780937444000,-500.0,0.00016438,2]
[424469392,1780937444000,-500.84649566,0.00016438,2]
[424469396,1780937444000,-500.0,0.00016438,2]
[424469417,1780937444000,-162.0,0.00016476,2]
[424469387,1780937444000,-303.58744019,0.00016438,2]
[424469354,1780937444000,-1380.01,0.00016438,2]
[424469358,1780937444000,-560.11,0.00016438,2]
[424469359,1780937444000,-364.08692689,0.00016438,2]
[424469361,1780937444000,-1265.64,0.00016438,2]
[424469362,1780937444000,-500.64426896,0.00016438,2]
[424469365,1780937444000,-500.50129567,0.00016438,2]
[424469367,1780937444000,-2681.41,0.00016438,2]
[424469395,1780937444000,-605.61,0.00016438,2]
[424469366,1780937444000,-796.01,0.00016438,2]
[424469378,1780937444000,-500.0,0.00016438,2]
[424469377,1780937444000,-500.0,0.00016438,2]
[424469369,1780937444000,-556.55,0.00016438,2]
[424469368,1780937444000,-500.0,0.00016438,2]
[424469370,1780937444000,-500.0,0.00016438,2]
[424469371,1780937444000,-500.0,0.00016438,2]
[424469372,1780937444000,-504.92802741,0.00016438,2]
[424469386,1780937444000,-500.64185042,0.00016438,2]
[424469385,1780937444000,-500.29714465,0.00016438,2]
[424469383,1780937444000,-500.0,0.00016438,2]
[424469384,1780937444000,-500.26010736,0.00016438,2]
[424469382,1780937444000,-500.29104521,0.00016438,2]
[424469363,1780937444000,-503.77262068,0.00016438,2]
[424469381,1780937444000,-501.24035216,0.00016438,2]
[424469379,1780937444000,-559.26,0.00016438,2]
[424469373,1780937444000,-701.8,0.00016438,2]
[424469374,1780937444000,-500.82406134,0.00016438,2]
[424469375,1780937444000,-500.0,0.00016438,2]
[424469376,1780937444000,-1512.15,0.00016438,2]
[424469380,1780937444000,-500.0,0.00016438,2]
[424469455,1780937445000,-205.83,0.00016712,2]
[424469457,1780937445000,-500.0,0.00016712,2]
[424469450,1780937445000,-304.21,0.00016712,2]
[424469461,1780937445000,-500.59286788,0.00016712,2]
[424469463,1780937445000,-207.71,0.00016712,2]
[424469462,1780937445000,-189.17,0.00016712,2]
[424469451,1780937445000,-392.39221031,0.00016712,2]
[424469453,1780937445000,-500.0,0.00016712,2]
[424469459,1780937445000,-500.0,0.00016712,2]
[424469449,1780937445000,-500.0,0.00016712,2]
[424469454,1780937445000,-427.31,0.00016712,2]
[424469458,1780937445000,-500.97163489,0.00016712,2]
[424469488,1780937445000,-481.95,0.00016712,2]
[424469465,1780937445000,-290.69579819,0.00016712,2]
[424469467,1780937445000,-387.67191025,0.00016712,2]
[424469468,1780937445000,-500.0,0.00016712,2]
[424469471,1780937445000,-722.56,0.00016712,2]
[424469472,1780937445000,-500.0,0.00016712,2]
[424469466,1780937445000,-9671.73,0.00016712,2]
[424469470,1780937445000,-500.0,0.00016712,2]
[424469473,1780937445000,-730.06,0.00016712,2]
[424469474,1780937445000,-500.0,0.00016712,2]
[424469464,1780937445000,-501.00115458,0.00016712,2]
[424469469,1780937445000,-500.0,0.00016712,2]
[424469475,1780937445000,-2009.88,0.00016712,2]
[424469445,1780937445000,-627.12,0.00016712,2]
[424469456,1780937445000,-576.4,0.00016712,2]
[424469446,1780937445000,-500.0,0.00016712,2]
[424469430,1780937445000,-543.67645652,0.00016712,2]
[424469443,1780937445000,-500.66264425,0.00016712,2]
[424469477,1780937445000,-500.0,0.00016712,2]
[424469424,1780937445000,-500.0,0.00016712,2]
[424469423,1780937445000,-1314.1315,0.00016712,2]
[424469421,1780937445000,-355.0,0.00016702,2]
[424469419,1780937445000,-265.0,0.00016702,2]
[424469418,1780937445000,-9234.35368089,0.000166,2]
[424469420,1780937445000,-204.0,0.00016702,2]
[424469422,1780937445000,-156.0,0.00016702,2]
[424469425,1780937445000,-212.25,0.00016712,2]
[424469429,1780937445000,-500.0,0.00016712,2]
[424469426,1780937445000,-385.60567471,0.00016712,2]
[424469428,1780937445000,-500.0,0.00016712,2]
[424469444,1780937445000,-500.0,0.00016712,2]
[424469427,1780937445000,-500.0,0.00016712,2]
[424469434,1780937445000,-335.92,0.00016712,2]
[424469432,1780937445000,-500.0,0.00016712,2]
[424469431,1780937445000,-500.0,0.00016712,2]
[424469433,1780937445000,-500.0,0.00016712,2]
[424469438,1780937445000,-500.0,0.00016712,2]
[424469447,1780937445000,-500.0,0.00016712,2]
[424469437,1780937445000,-500.43335417,0.00016712,2]